bitfinex-derivatives/quotes_BTCF0:USTF0_20250907
["timestamp","ask_amount","ask_price","bid_price","bid_amount"]
[1757228231381,0.8455121,110590.0,110580.0,0.03666]
[1757228231586,1.10784561,110590.0,110580.0,0.03666]
[1757228232485,1.10784561,110590.0,110580.0,0.15050947]
[1757228236388,1.10784561,110590.0,110580.0,0.03666]
[1757228238793,1.10784561,110590.0,110580.0,0.15052164]
[1757228239491,1.10784561,110590.0,110580.0,0.03666]
[1757228241389,1.10791825,110590.0,110580.0,0.03666]
[1757228241694,1.10784561,110590.0,110580.0,0.03666]
[1757228245291,1.10792771,110590.0,110580.0,0.03666]
[1757228245505,1.10784561,110590.0,110580.0,0.03666]
[1757228249099,0.84543,110590.0,110580.0,0.03666]
[1757228249301,1.10784561,110590.0,110580.0,0.15052164]
[1757228250395,1.10792771,110590.0,110580.0,0.15052164]
[1757228250590,1.10784561,110590.0,110580.0,0.15052164]
[1757228250791,1.10791217,110590.0,110580.0,0.15052164]
[1757228251094,1.10784561,110590.0,110580.0,0.03666]
[1757228254703,1.10791255,110590.0,110580.0,0.03666]
[1757228254900,1.10784561,110590.0,110580.0,0.03666]
[1757228255801,1.37026122,110590.0,110580.0,0.03666]
[1757228257006,0.84543,110590.0,110580.0,0.03666]
[1757228257204,1.37026122,110590.0,110580.0,0.03666]
[1757228258102,1.10784561,110590.0,110580.0,0.03666]
[1757228258308,1.10784561,110590.0,110580.0,0.04117]
[1757228259206,0.84543,110590.0,110580.0,0.04117]
[1757228259406,1.10784561,110590.0,110580.0,0.04117]
[1757228259603,1.10792771,110590.0,110580.0,0.04117]
[1757228259901,1.38138122,110590.0,110580.0,0.12050835]
[1757228265106,1.38138122,110590.0,110580.0,0.14220835]
[1757228265513,1.11904226,110590.0,110580.0,0.14220835]
[1757228267510,1.11904226,110590.0,110580.0,0.02821]
[1757228270014,1.11904226,110590.0,110580.0,0.14220835]
[1757228270607,1.11912436,110590.0,110580.0,0.14220835]
[1757228271117,1.11904226,110590.0,110580.0,0.14220835]
[1757228271317,0.85655,110590.0,110580.0,0.02821]
[1757228271519,1.11904226,110590.0,110580.0,0.02821]
[1757228274817,1.11904226,110590.0,110580.0,0.00651]
[1757228275009,1.11904226,110590.0,110580.0,0.02938]
[1757228277527,1.11904226,110590.0,110580.0,0.00651]
[1757228279113,1.11904226,110590.0,110580.0,0.02938]
[1757228281021,1.11912436,110590.0,110580.0,0.02938]
[1757228281523,1.11904226,110590.0,110580.0,0.14337835]
[1757228283725,1.11904226,110590.0,110580.0,0.02938]
[1757228284928,1.11904226,110590.0,110580.0,0.1433544]
[1757228286520,1.10792226,110590.0,110580.0,0.1564544]
[1757228286723,1.10800436,110590.0,110580.0,0.1564544]
[1757228286920,1.10800436,110590.0,110580.0,0.04248]
[1757228287121,1.10798715,110590.0,110580.0,0.04248]
[1757228287324,1.10792226,110590.0,110580.0,0.04248]
[1757228288733,1.10792226,110590.0,110580.0,0.15646349]
[1757228292840,0.84549643,110590.0,110580.0,0.15646349]
[1757228293035,1.10800436,110590.0,110580.0,0.15646349]
[1757228293238,1.10800289,110590.0,110580.0,0.15646349]
[1757228293539,1.10792226,110590.0,110580.0,0.15646349]
[1757228294237,1.10800436,110590.0,110580.0,0.15646349]
[1757228294543,1.10792226,110590.0,110580.0,0.15646349]
[1757228295142,1.10792226,110590.0,110580.0,0.04248]
[1757228298354,1.10800436,110590.0,110580.0,0.04248]
[1757228298846,1.10792226,110590.0,110580.0,0.04248]
[1757228303045,1.10800436,110590.0,110580.0,0.04248]
[1757228303349,1.10792226,110590.0,110580.0,0.04248]
[1757228304751,1.10792226,110590.0,110580.0,0.15646349]
[1757228306849,1.96153452,110590.0,110580.0,0.00651]
[1757228308250,2.08059018,110590.0,110580.0,0.00651]
[1757228308452,2.08059018,110590.0,110540.0,0.43798937]
[1757228308656,0.0224,110550.0,110540.0,0.53061937]
[1757228309457,0.03538621,110550.0,110540.0,0.53061937]
[1757228309746,0.03546831,110550.0,110540.0,0.53061937]
[1757228309948,0.03546831,110550.0,110540.0,0.36835226]
[1757228310256,0.03538621,110550.0,110540.0,0.54835226]
[1757228310459,1.12235847,110550.0,110540.0,0.03886]
[1757228311354,1.12235847,110550.0,110540.0,0.04286]
[1757228311553,1.12231847,110550.0,110540.0,0.04286]
[1757228312552,0.29787847,110550.0,110540.0,0.04286]
[1757228312756,0.45194621,110550.0,110540.0,0.04286]
[1757228313051,0.71443847,110550.0,110540.0,0.03586]
[1757228313257,0.71443847,110550.0,110540.0,0.03986]
[1757228314154,0.71443847,110550.0,110540.0,0.03782]
[1757228314356,0.71443847,110550.0,110540.0,0.03882]
[1757228314755,0.29787847,110550.0,110540.0,0.03882]
[1757228315056,1.12211847,110550.0,110540.0,0.03882]
[1757228315758,1.12211847,110550.0,110540.0,0.03682]
[1757228315959,1.12211847,110550.0,110540.0,0.03882]
[1757228319162,0.29787847,110550.0,110540.0,0.03882]
[1757228319362,1.12183847,110550.0,110540.0,0.03882]
[1757228319562,1.13299847,110550.0,110540.0,0.03882]
[1757228319763,1.13299847,110550.0,110540.0,0.03967268]
[1757228320258,1.13299847,110550.0,110540.0,0.03969648]
[1757228320758,1.13307869,110550.0,110540.0,0.03969648]
[1757228321062,1.13299847,110550.0,110540.0,0.03869648]
[1757228321654,1.39557106,110550.0,110540.0,0.01606648]
[1757228321853,1.39549073,110550.0,110540.0,0.01606648]
[1757228322050,0.03538621,110550.0,110540.0,0.56441874]
[1757228322267,0.04348212,110560.0,110550.0,0.03586]
[1757228322563,0.04348212,110560.0,110550.0,0.29835226]
[1757228322751,0.04348212,110560.0,110550.0,0.03586]
[1757228323859,0.04448212,110560.0,110550.0,0.03586]
[1757228324064,0.04548212,110560.0,110550.0,0.29835226]
[1757228324562,0.04548212,110560.0,110550.0,0.03586]
[1757228325364,0.04548212,110560.0,110550.0,0.29835226]
[1757228325562,0.04548212,110560.0,110550.0,0.03586]
[1757228325759,0.04548212,110560.0,110550.0,0.14950272]
[1757228325957,0.04548212,110560.0,110550.0,0.41199498]
[1757228326560,0.05823563,110560.0,110550.0,0.41199498]
[1757228327460,0.32077608,110560.0,110550.0,0.41204317]
[1757228327655,0.002,110560.0,110550.0,1.01502542]
[1757228327858,0.002,110560.0,110550.0,1.2113827]
[1757228328063,0.002,110560.0,110550.0,0.9013827]
[1757228330469,0.002,110560.0,110550.0,0.63884225]
[1757228332861,0.002,110560.0,110550.0,0.9013827]
[1757228333971,0.002,110560.0,110550.0,1.46284225]
[1757228335070,0.002,110560.0,110550.0,1.37240045]
[1757228337269,0.0020821,110560.0,110550.0,1.37240045]
[1757228337472,0.002,110560.0,110550.0,1.37240045]
[1757228338874,0.002,110560.0,110550.0,1.48599136]
[1757228341780,0.002,110560.0,110550.0,1.51599136]
[1757228344377,0.002,110560.0,110550.0,1.40240045]
[1757228346784,0.002,110560.0,110550.0,1.51610043]
[1757228347172,0.002,110560.0,110550.0,0.57840045]
[1757228347373,0.002,110560.0,110550.0,1.51523053]
[1757228348476,0.0020821,110560.0,110550.0,1.51523053]
[1757228348674,0.002,110560.0,110550.0,1.51523053]
[1757228349476,0.002,110560.0,110550.0,1.40152045]
[1757228352284,0.002,110560.0,110550.0,0.57840045]
[1757228352582,0.002,110560.0,110550.0,1.40132045]
[1757228354679,0.002,110560.0,110550.0,1.72132045]
[1757228354880,0.002,110560.0,110550.0,1.8243027]
[1757228355280,0.002,110560.0,110550.0,1.5143027]
[1757228355479,0.002,110560.0,110550.0,1.8443027]
[1757228355887,0.002,110560.0,110550.0,1.5043027]
[1757228356186,0.002,110560.0,110550.0,1.4237409]
[1757228357492,0.002,110560.0,110550.0,1.58600801]
[1757228358887,0.002,110560.0,110550.0,1.88600801]
[1757228359083,0.00207908,110560.0,110550.0,1.88600801]
[1757228359386,0.002,110560.0,110550.0,1.88600801]
[1757228359588,0.002,110560.0,110550.0,1.54600801]
[1757228359780,0.002,110560.0,110550.0,1.58600801]
[1757228360689,0.002,110560.0,110550.0,0.76320801]
[1757228360885,0.002,110560.0,110550.0,1.58576801]
[1757228362787,0.002,110560.0,110550.0,0.76320801]
[1757228362988,0.002,110560.0,110550.0,1.58544801]
[1757228363291,0.002,110560.0,110550.0,1.58996801]
[1757228363481,0.002,110560.0,110550.0,1.59004801]
[1757228364486,0.002,110560.0,110550.0,0.76772801]
[1757228364690,0.002,110560.0,110550.0,1.59000801]
[1757228364890,0.002,110560.0,110550.0,0.76772801]
[1757228365091,0.002,110560.0,110550.0,1.59000801]
[1757228367190,0.002,110560.0,110550.0,1.16520045]
[1757228369090,0.0020821,110560.0,110550.0,1.16520045]
[1757228369393,0.002,110560.0,110550.0,1.16520045]
[1757228373193,0.002,110560.0,110550.0,1.4277409]
[1757228377289,0.002,110560.0,110550.0,1.60055985]
[1757228378294,0.002,110560.0,110550.0,1.3380194]
[1757228378498,0.002,110560.0,110550.0,1.6280194]
[1757228378699,0.002,110560.0,110550.0,1.59055985]
[1757228380904,0.002,110560.0,110550.0,1.55055985]
[1757228381204,0.002,110560.0,110550.0,1.59055985]
[1757228382498,0.002,110560.0,110550.0,1.3280194]
[1757228387207,0.002,110560.0,110550.0,1.16520045]
[1757228389406,0.002,110560.0,110550.0,1.16516506]
[1757228389612,0.002,110560.0,110550.0,1.47516506]
[1757228400314,0.53587857,110560.0,110550.0,0.39038]
[1757228400509,0.53580506,110560.0,110550.0,0.95242]
[1757228402806,0.2733,110560.0,110550.0,0.95242]
[1757228405113,0.002,110560.0,110550.0,1.21492506]
[1757228405510,0.002,110560.0,110550.0,0.95242]
[1757228405713,0.002,110560.0,110550.0,1.21492506]
[1757228408008,0.002,110560.0,110550.0,1.37774401]
[1757228409712,0.0020821,110560.0,110550.0,1.37774401]
[1757228409913,0.002,110560.0,110550.0,1.37774401]
[1757228410115,0.0020821,110560.0,110550.0,1.37774401]
[1757228410308,0.002,110560.0,110550.0,1.37774401]
[1757228412013,0.002,110560.0,110550.0,1.60774401]
[1757228412216,0.002,110560.0,110550.0,1.30774401]
[1757228412705,0.002,110560.0,110550.0,1.70818481]
[1757228412911,0.002,110560.0,110550.0,1.66068987]
[1757228413112,0.002,110560.0,110550.0,2.00068987]
[1757228413522,0.002,110560.0,110550.0,1.64068987]
[1757228413716,0.002,110560.0,110550.0,1.99068987]
[1757228413918,0.002,110560.0,110550.0,1.64068987]
[1757228414118,0.002,110560.0,110550.0,2.02068987]
[1757228414421,0.002,110560.0,110550.0,1.67068987]
[1757228415120,0.002,110560.0,110550.0,1.99068987]
[1757228415324,0.002,110560.0,110550.0,1.67068987]
[1757228415719,0.002,110560.0,110550.0,1.58024907]
[1757228416320,0.002,110560.0,110550.0,1.89024907]
[1757228416524,0.002,110560.0,110550.0,1.58024907]
[1757228416717,0.002,110560.0,110550.0,1.55024907]
[1757228417023,0.002,110560.0,110550.0,1.31774401]
[1757228417322,0.002,110560.0,110550.0,1.63774401]
[1757228417816,0.0020821,110560.0,110550.0,1.31774401]
[1757228418121,0.002,110560.0,110550.0,1.31774401]
[1757228418523,0.001,110560.0,110550.0,1.15492506]
[1757228418715,0.001,110560.0,110550.0,1.15592506]
[1757228419115,0.01283406,110570.0,110550.0,1.15592506]
[1757228419422,0.01283406,110570.0,110560.0,0.46077697]
[1757228420222,0.01283406,110570.0,110560.0,0.29803506]
[1757228420424,0.01283406,110570.0,110560.0,0.03553]
[1757228420623,0.01283406,110570.0,110560.0,0.30255506]
[1757228423013,0.01383406,110570.0,110560.0,0.30255506]
[1757228423618,0.01483406,110570.0,110560.0,0.30255506]
[1757228424921,0.03680406,110570.0,110560.0,0.30255506]
[1757228425523,0.03687554,110570.0,110560.0,0.30255506]
[1757228425726,0.03688552,110570.0,110560.0,0.30255506]
[1757228426026,0.03680406,110570.0,110560.0,0.30255506]
[1757228427026,0.01483406,110570.0,110560.0,0.30255506]
[1757228429628,0.01491616,110570.0,110560.0,0.30255506]
[1757228430014,0.01483406,110570.0,110560.0,0.30255506]
[1757228433630,0.03680406,110570.0,110560.0,0.30255506]
[1757228437727,0.03680406,110570.0,110560.0,0.41651108]
[1757228438935,0.01483406,110570.0,110560.0,0.41651108]
[1757228440630,0.03680406,110570.0,110560.0,0.41651108]
[1757228443735,0.03680406,110570.0,110560.0,0.30255506]
[1757228444131,0.03688616,110570.0,110560.0,0.30255506]
[1757228444331,0.03680406,110570.0,110560.0,0.30255506]
[1757228445440,0.03680406,110570.0,110560.0,1.12275506]
[1757228447438,0.03680406,110570.0,110560.0,0.30255506]
[1757228449532,0.29931028,110570.0,110560.0,0.30255622]
[1757228456840,0.03680406,110570.0,110560.0,0.30255622]
[1757228457040,0.29931028,110570.0,110560.0,0.30255622]
[1757228458843,0.03680406,110570.0,110560.0,0.30255622]
[1757228459048,0.29931028,110570.0,110560.0,0.30255622]
[1757228469255,0.29931028,110570.0,110560.0,0.46529813]
[1757228469758,0.29931028,110570.0,110560.0,0.20279191]
[1757228469947,0.29931028,110570.0,110560.0,0.46529813]
[1757228471556,0.29931028,110570.0,110560.0,0.30255622]
[1757228472557,0.03680406,110570.0,110560.0,0.30255622]
[1757228472761,0.29931028,110570.0,110560.0,0.30255622]
[1757228479168,0.29931028,110570.0,110560.0,0.56506244]
[1757228481355,0.29938599,110570.0,110560.0,0.56506244]
[1757228481559,0.29939238,110570.0,110560.0,0.56506244]
[1757228481750,0.29938884,110570.0,110560.0,0.56506244]
[1757228481950,0.29937357,110570.0,110560.0,0.56506244]
[1757228482151,0.29931028,110570.0,110560.0,0.56506244]
[1757228482350,0.29939238,110570.0,110560.0,0.56506244]
[1757228482750,0.29931028,110570.0,110560.0,0.56506244]
[1757228483159,0.03680406,110570.0,110560.0,0.30255622]
[1757228483462,0.29931028,110570.0,110560.0,0.30255622]
[1757228486154,0.03680406,110570.0,110560.0,0.30255622]
[1757228486358,0.29931028,110570.0,110560.0,0.30255622]
[1757228487161,0.29931028,110570.0,110560.0,0.56506244]
[1757228488756,0.29931028,110570.0,110560.0,0.04005]
[1757228488961,0.29931028,110570.0,110560.0,0.30255622]
[1757228492159,0.29939171,110570.0,110560.0,0.30255622]
[1757228492358,0.29939238,110570.0,110560.0,0.30255622]
[1757228492552,0.29931028,110570.0,110560.0,0.30255622]
[1757228493553,0.01483406,110570.0,110560.0,0.56506244]
[1757228495259,0.01483406,110570.0,110560.0,0.67906904]
[1757228496657,0.01383406,110570.0,110560.0,0.67906904]
[1757228496854,0.01391205,110570.0,110560.0,0.67906904]
[1757228497157,0.01383406,110570.0,110560.0,0.67906904]
[1757228497764,0.01283406,110570.0,110560.0,0.67906904]
[1757228498160,0.01283406,110570.0,110560.0,0.56506244]
[1757228498361,0.01283406,110570.0,110560.0,0.93506244]
[1757228498564,0.01283406,110570.0,110560.0,0.89506244]
[1757228499067,0.00013546,110570.0,110560.0,1.26800206]
[1757228499366,0.00013546,110570.0,110560.0,1.13756866]
[1757228499567,0.00013546,110570.0,110560.0,0.93800206]
[1757228499767,0.00013546,110570.0,110560.0,1.22800206]
[1757228500168,0.00013546,110570.0,110560.0,1.22900206]
[1757228500570,0.00013546,110570.0,110560.0,1.39174397]
[1757228501372,0.00013546,110570.0,110560.0,1.22800206]
[1757228501564,0.00013546,110570.0,110560.0,1.22900206]
[1757228502173,0.00013546,110570.0,110560.0,1.39174397]
[1757228502865,0.00013546,110570.0,110560.0,1.40367567]
[1757228504572,0.00013546,110570.0,110560.0,1.24093376]
[1757228504974,0.35578599,110600.0,110570.0,0.03482]
[1757228505270,0.71796599,110600.0,110590.0,0.41109709]
[1757228506367,0.71796599,110600.0,110590.0,0.41561709]
[1757228506966,0.71996599,110600.0,110590.0,0.41561709]
[1757228507172,0.73090652,110600.0,110590.0,0.41561709]
[1757228507366,0.4684003,110600.0,110590.0,0.41561709]
[1757228507573,0.10629886,110600.0,110590.0,0.41561709]
[1757228507872,0.1082203,110600.0,110590.0,0.41561709]
[1757228508078,0.08728701,110600.0,110590.0,0.41561709]
[1757228508271,0.08736911,110600.0,110590.0,0.41561709]
[1757228508465,0.08736045,110600.0,110590.0,0.41561709]
[1757228508669,0.08728701,110600.0,110590.0,0.41561709]
[1757228509566,0.08728701,110600.0,110590.0,0.41543501]
[1757228510673,0.08728701,110600.0,110590.0,1.23523501]
[1757228511073,0.08728701,110600.0,110590.0,1.12146414]
[1757228511474,0.07634648,110600.0,110590.0,1.12146414]
[1757228512575,0.07642858,110600.0,110590.0,1.12146414]
[1757228512776,0.07634648,110600.0,110590.0,1.12146414]
[1757228514574,0.07634648,110600.0,110590.0,1.12142414]
[1757228516872,0.07234648,110600.0,110590.0,1.12242414]
[1757228517076,0.01124416,110610.0,110590.0,1.12242414]
[1757228517280,0.03254416,110610.0,110600.0,0.41071904]
[1757228518484,0.03354416,110610.0,110600.0,0.41071904]
[1757228518877,0.03362626,110610.0,110600.0,0.41071904]
[1757228519082,0.03354416,110610.0,110600.0,0.41071904]
[1757228520284,0.03254416,110610.0,110600.0,0.41071904]
[1757228524090,0.03254416,110610.0,110600.0,0.1483949]
[1757228524491,0.2948683,110610.0,110600.0,0.1483949]
[1757228525282,0.2948683,110610.0,110600.0,0.03487]
[1757228527291,0.2948683,110610.0,110600.0,0.1483949]
[1757228527794,0.2948683,110610.0,110600.0,0.1529149]
[1757228528190,0.2948683,110610.0,110600.0,0.03939]
[1757228528591,0.2948683,110610.0,110600.0,0.1529149]
[1757228529685,0.2949504,110610.0,110600.0,0.1529149]
[1757228529880,0.2948683,110610.0,110600.0,0.1529149]
[1757228535896,0.03254416,110610.0,110600.0,0.1529149]
[1757228536097,0.2948683,110610.0,110600.0,0.1529149]
[1757228537499,0.2948683,110610.0,110600.0,0.03939]
[1757228538206,0.2948683,110610.0,110600.0,0.15326115]
[1757228538605,0.2948683,110610.0,110600.0,0.03939]
[1757228541407,0.80719244,110610.0,110600.0,0.15330874]
[1757228541609,0.81378244,110610.0,110600.0,0.11843874]
[1757228541805,0.81378244,110610.0,110600.0,0.00452]
[1757228542013,0.5514583,110610.0,110600.0,0.02779]
[1757228543811,0.5448683,110610.0,110600.0,0.04073]
[1757228544106,0.5458683,110610.0,110600.0,0.04073]
[1757228545405,0.5468683,110610.0,110600.0,0.04073]
[1757228556010,0.54693812,110610.0,110600.0,0.04073]
[1757228556210,0.5468683,110610.0,110600.0,0.04073]
[1757228556715,0.5468683,110610.0,110600.0,0.15464874]
[1757228558707,0.5469504,110610.0,110600.0,0.15464874]
[1757228558913,0.5468683,110610.0,110600.0,0.15464874]
[1757228559413,0.2968683,110610.0,110600.0,0.15464874]
[1757228561512,0.29693234,110610.0,110600.0,0.15464874]
[1757228561814,1.1163883,110610.0,110600.0,0.15464874]
[1757228562217,1.1163883,110610.0,110600.0,0.04073]
[1757228562621,1.1163883,110610.0,110600.0,0.1545824]
[1757228564621,1.1163883,110610.0,110600.0,0.04073]
[1757228565532,0.85406416,110610.0,110600.0,0.15460577]
[1757228565717,1.1163883,110610.0,110600.0,0.15460577]
[1757228566817,1.1164704,110610.0,110600.0,0.15460577]
[1757228567019,1.1163883,110610.0,110600.0,0.15460577]
[1757228568018,1.1164704,110610.0,110600.0,0.15460577]
[1757228568524,1.1163883,110610.0,110600.0,0.15460577]
[1757228571527,1.11641194,110610.0,110600.0,0.41695355]
[1757228572321,1.11649404,110610.0,110600.0,0.41695355]
[1757228572723,1.11641194,110610.0,110600.0,0.41695355]
[1757228573625,1.11641194,110610.0,110600.0,0.15460577]
[1757228576025,0.29689194,110610.0,110600.0,0.15460577]
[1757228576225,1.11661194,110610.0,110600.0,0.15460577]
[1757228576826,0.29689194,110610.0,110600.0,0.15460577]
[1757228577028,1.11653194,110610.0,110600.0,0.04073]
[1757228577333,0.85414416,110610.0,110600.0,0.04073]
[1757228577534,1.11649194,110610.0,110600.0,0.04073]
[1757228577832,1.11649194,110610.0,110600.0,0.30307778]
[1757228578027,1.11649194,110610.0,110600.0,0.41703327]
[1757228582533,1.11657404,110610.0,110600.0,0.41703327]
[1757228583132,1.11657404,110610.0,110600.0,0.15468549]
[1757228583332,1.11649194,110610.0,110600.0,0.15468549]
[1757228585239,1.11665194,110610.0,110600.0,0.41703327]
[1757228585737,1.11665194,110610.0,110600.0,0.15468549]
[1757228588040,0.29689194,110610.0,110600.0,0.41703327]
[1757228588338,1.11653194,110610.0,110600.0,0.41703327]
[1757228588638,1.11661404,110610.0,110600.0,0.41703327]
[1757228588943,1.11653194,110610.0,110600.0,0.30307778]
[1757228589740,1.11653194,110610.0,110600.0,0.41702065]
[1757228589941,0.29689194,110610.0,110600.0,0.41702065]
[1757228590237,1.11653194,110610.0,110600.0,0.41702065]
[1757228590743,0.29689194,110610.0,110600.0,0.41702065]
[1757228591040,1.38542972,110610.0,110600.0,0.11846287]
[1757228591432,1.45542972,110610.0,110600.0,0.11846287]
[1757228591649,0.93073416,110610.0,110600.0,0.11846287]
[1757228591948,0.93073416,110610.0,110600.0,0.02589]
[1757228592140,1.45542972,110610.0,110600.0,0.02589]
[1757228592848,1.45442972,110610.0,110600.0,0.02589]
[1757228593234,1.45342972,110610.0,110600.0,0.02589]
[1757228593445,1.45342972,110610.0,110600.0,0.13983287]
[1757228593843,1.67342972,110610.0,110600.0,0.13983287]
[1757228595045,1.67442972,110610.0,110600.0,0.13983287]
[1757228595743,1.67542972,110610.0,110600.0,0.13983287]
[1757228596247,1.67742972,110610.0,110600.0,0.13983287]
[1757228597542,1.67751182,110610.0,110600.0,0.13983287]
[1757228597751,1.67742972,110610.0,110600.0,0.13983287]
[1757228601746,1.67742972,110610.0,110600.0,0.11846287]
[1757228601747,1.92742972,110610.0,110600.0,0.11846287]
[1757228602254,1.92742972,110610.0,110600.0,0.00452]
[1757228604150,0.01102,110590.0,110580.0,0.11407833]
[1757228604447,2.13229375,110590.0,110580.0,0.00013546]
[1757228604654,2.13237585,110590.0,110580.0,0.00013546]
[1757228604954,2.38229375,110590.0,110580.0,0.00013546]
[1757228607152,1.85759819,110590.0,110580.0,0.00013546]
[1757228607358,2.38729375,110590.0,110580.0,0.00013546]
[1757228608049,2.38729375,110590.0,110560.0,0.13214287]
[1757228608050,0.29049778,110570.0,110560.0,0.11846287]
[1757228608254,0.86011,110570.0,110560.0,0.14121287]
[1757228608454,1.12245778,110570.0,110560.0,0.14121287]
[1757228609363,1.12245778,110570.0,110560.0,0.15448287]
[1757228611047,1.11600778,110570.0,110560.0,0.15448287]
[1757228611253,1.11608988,110570.0,110560.0,0.15448287]
[1757228611456,1.11700778,110570.0,110560.0,0.15448287]
[1757228611758,1.11700778,110570.0,110560.0,0.04054]
[1757228612853,1.11708988,110570.0,110560.0,0.04054]
[1757228613156,1.11700778,110570.0,110560.0,0.04054]
[1757228614059,1.11700778,110570.0,110560.0,0.15448287]
[1757228614957,1.11700778,110570.0,110560.0,0.04054]
[1757228615860,0.85466,110570.0,110560.0,0.04054]
[1757228616048,1.11700778,110570.0,110560.0,0.04054]
[1757228617759,1.11708988,110570.0,110560.0,0.04054]
[1757228617962,1.11700778,110570.0,110560.0,0.04054]
[1757228620963,0.8543,110570.0,110560.0,0.04054]
[1757228621263,1.11664778,110570.0,110560.0,0.04054]
[1757228623167,0.8543,110570.0,110560.0,0.04054]
[1757228623466,1.11664778,110570.0,110560.0,0.04054]
[1757228623968,1.11660778,110570.0,110560.0,0.04054]
[1757228627169,1.11668988,110570.0,110560.0,0.04054]
[1757228627369,1.11660778,110570.0,110560.0,0.04054]
[1757228627570,1.11668988,110570.0,110560.0,0.04054]
[1757228627771,1.11660778,110570.0,110560.0,0.04054]
[1757228628068,1.11660778,110570.0,110560.0,0.03602]
[1757228629070,0.28504778,110570.0,110560.0,0.03602]
[1757228629271,0.8539,110570.0,110560.0,0.14996287]
[1757228629473,1.11624778,110570.0,110560.0,0.14996287]
[1757228633473,0.8539821,110570.0,110560.0,0.14996287]
[1757228633780,1.11644304,110570.0,110560.0,0.14996287]
[1757228634579,1.11644304,110570.0,110560.0,0.03602]
[1757228634874,1.11644304,110570.0,110560.0,0.14998848]
[1757228635476,1.11652514,110570.0,110560.0,0.14998848]
[1757228635868,1.11644304,110570.0,110560.0,0.14998848]
[1757228636070,1.11644304,110570.0,110560.0,0.03602]
[1757228636270,1.11644304,110570.0,110560.0,0.02275]
[1757228636678,1.11644304,110570.0,110560.0,0.03605]
[1757228639689,1.11584304,110570.0,110560.0,0.03605]
[1757228639885,0.85326,110570.0,110560.0,0.03605]
[1757228640185,1.11580304,110570.0,110560.0,0.03605]
[1757228640583,1.11588376,110570.0,110560.0,0.03605]
[1757228640776,1.11580304,110570.0,110560.0,0.03605]
[1757228641488,0.85326,110570.0,110560.0,0.03605]
[1757228641687,1.11580304,110570.0,110560.0,0.03605]
[1757228645086,1.11588514,110570.0,110560.0,0.03605]
[1757228645390,1.11580304,110570.0,110560.0,0.03605]
[1757228645789,0.85306,110570.0,110560.0,0.03605]
[1757228645982,1.11560304,110570.0,110560.0,0.03605]
[1757228647587,1.11560304,110570.0,110560.0,0.04057]
[1757228648990,1.11568514,110570.0,110560.0,0.04057]
[1757228649200,1.11560304,110570.0,110560.0,0.04057]
[1757228649988,1.11568514,110570.0,110560.0,0.04057]
[1757228650395,1.11560304,110570.0,110560.0,0.04057]
[1757228651290,0.85306,110570.0,110560.0,0.00452]
[1757228651493,0.873808,110570.0,110560.0,0.00452]
[1757228651696,1.483808,110570.0,110560.0,0.00452]
[1757228651990,1.74635104,110570.0,110560.0,0.00452]
[1757228652296,1.86391184,110570.0,110560.0,0.00452]
[1757228655303,1.86391184,110570.0,110560.0,0.11852557]
[1757228657504,1.61391184,110570.0,110560.0,0.11852557]
[1757228659904,1.61391184,110570.0,110560.0,0.00452]
[1757228660801,1.61399394,110570.0,110560.0,0.00452]
[1757228661010,1.61398064,110570.0,110560.0,0.00452]
[1757228661307,1.61391184,110570.0,110560.0,0.00452]
[1757228664510,1.3513688,110570.0,110560.0,0.00452]
[1757228664705,1.61391184,110570.0,110560.0,0.00452]
[1757228667100,1.61399394,110570.0,110560.0,0.00452]
[1757228667411,1.61391184,110570.0,110560.0,0.00452]
[1757228668003,1.3513688,110570.0,110560.0,0.00452]
[1757228668205,1.61391184,110570.0,110560.0,0.00452]
[1757228672607,1.61387184,110570.0,110560.0,0.00452]
[1757228676610,1.3513288,110570.0,110560.0,0.00452]
[1757228676817,1.61387184,110570.0,110560.0,0.00452]
[1757228680621,1.61387184,110570.0,110560.0,0.02592]
[1757228681217,1.61395394,110570.0,110560.0,0.02592]
[1757228681416,1.61387184,110570.0,110560.0,0.02592]
[1757228682317,1.61387184,110570.0,110560.0,0.00452]
[1757228682518,0.78355184,110570.0,110560.0,0.00452]
[1757228682719,1.61371184,110570.0,110560.0,0.00452]
[1757228687115,0.5210088,110570.0,110560.0,0.02592]
[1757228687309,1.40367184,110570.0,110560.0,0.03954]
[1757228688121,1.40375394,110570.0,110560.0,0.03954]
[1757228688310,1.40367184,110570.0,110560.0,0.03954]
[1757228688915,1.1411288,110570.0,110560.0,0.03954]
[1757228689117,1.40367184,110570.0,110560.0,0.03954]
[1757228689314,1.58367184,110570.0,110560.0,0.03954]
[1757228690924,0.75355184,110570.0,110560.0,0.03954]
[1757228691129,1.37383184,110570.0,110560.0,0.03954]
[1757228691618,1.37391343,110570.0,110560.0,0.03954]
[1757228691824,1.37383184,110570.0,110560.0,0.03954]
[1757228692619,1.37371184,110570.0,110560.0,0.03954]
[1757228692818,1.37379394,110570.0,110560.0,0.03954]
[1757228693125,1.25371184,110570.0,110560.0,0.03954]
[1757228693421,1.63371184,110570.0,110560.0,0.15354557]
[1757228695521,1.63372317,110570.0,110560.0,0.15354557]
[1757228696225,0.80356317,110570.0,110560.0,0.15354557]
[1757228696425,1.61368317,110570.0,110560.0,0.15354557]
[1757228696622,0.78356317,110570.0,110560.0,0.15354557]
[1757228696828,1.37356317,110570.0,110560.0,0.15354557]
[1757228697027,1.63356317,110570.0,110560.0,0.15354557]
[1757228697326,0.42356317,110570.0,110560.0,0.15354557]
[1757228697526,1.35348317,110570.0,110560.0,0.15354557]
[1757228697728,1.86603754,110570.0,110560.0,0.15354557]
[1757228698020,1.86607754,110570.0,110560.0,0.15354557]
[1757228698223,1.86611754,110570.0,110560.0,0.15354557]
[1757228702023,1.8661915,110570.0,110560.0,0.15354557]
[1757228702226,1.86611754,110570.0,110560.0,0.15354557]
[1757228702821,1.86619964,110570.0,110560.0,0.15354557]
[1757228703142,1.86611754,110570.0,110560.0,0.03954]
[1757228707332,1.86611754,110570.0,110560.0,0.02592]
[1757228710930,1.86611754,110570.0,110560.0,0.00452]
[1757228711828,1.86619964,110570.0,110560.0,0.00452]
[1757228712231,1.86611754,110570.0,110560.0,0.00452]
[1757228712426,1.86619964,110570.0,110560.0,0.00452]
[1757228712828,1.86611754,110570.0,110560.0,0.00452]
[1757228713027,1.86611754,110570.0,110560.0,0.11852557]
[1757228713427,1.86611754,110570.0,110560.0,0.00452]
[1757228713625,1.3410088,110570.0,110560.0,0.00452]
[1757228713922,1.86611754,110570.0,110560.0,0.00452]
[1757228715135,1.86611754,110570.0,110560.0,0.11852557]
[1757228717129,1.86619964,110570.0,110560.0,0.11852557]